bitfinex-derivatives/quotes_ETHF0:USTF0_20260203
["timestamp","ask_amount","ask_price","bid_price","bid_amount"]
[1770120036674,0.00379982,2279.1,2278.5,1.17265159]
[1770120036873,2.34415464,2279.1,2278.6,5.39548892]
[1770120037075,2.34415464,2279.1,2278.1,3.58671]
[1770120037273,2.34415464,2279.1,2278.1,4.53970159]
[1770120037474,2.34415464,2279.1,2278.1,10.2292547]
[1770120037875,2.34415464,2279.1,2278.1,6.8622547]
[1770120039179,2.34415464,2279.1,2278.1,5.90926311]
[1770120039378,2.34415464,2279.1,2278.1,0.21971]
[1770120040575,2.34415464,2279.1,2278.1,1.05166987]
[1770120040779,2.34415464,2279.1,2278.3,1.05164987]
[1770120040978,0.00379982,2279.1,2278.4,0.83195987]
[1770120041479,2.34415464,2279.1,2278.5,5.61706434]
[1770120041677,2.34415464,2279.1,2278.1,0.21971]
[1770120041874,2.34415464,2279.1,2278.1,3.81558143]
[1770120042076,2.34035482,2278.4,2277.1,3.07927566]
[1770120042280,2.34035482,2278.3,2277.1,3.07927566]
[1770120042482,2.56007482,2278.0,2276.8,2.54001269]
[1770120042781,2.56007482,2278.0,2276.3,2.54001269]
[1770120043180,2.56007482,2278.0,2276.3,2.75988269]
[1770120043483,2.56007482,2278.0,2276.3,2.76444542]
[1770120044384,2.56007482,2278.0,2276.5,2.54001269]
[1770120045084,2.56007482,2278.0,2276.7,2.54001269]
[1770120045085,2.34035482,2278.0,2276.7,2.54001269]
[1770120045273,2.34035482,2278.0,2276.7,2.75985269]
[1770120045578,3.29367,2278.5,2277.4,2.75978269]
[1770120045579,2.34035482,2278.5,2277.4,2.75978269]
[1770120045984,2.34035482,2278.5,2277.6,2.54001269]
[1770120046381,2.34035482,2278.5,2277.7,8.11796687]
[1770120046581,2.34035482,2278.7,2277.8,2.54001269]
[1770120051884,2.34035482,2278.7,2277.9,7.99898642]
[1770120052081,2.34035482,2278.7,2277.3,3.93522269]
[1770120052082,2.34035482,2278.7,2277.6,2.57203968]
[1770120052485,2.56001482,2278.7,2277.4,2.57184278]
[1770120052684,2.8432851,2278.7,2277.4,2.57184278]
[1770120053286,2.8432851,2278.7,2277.4,2.57662284]
[1770120054079,51.004,2278.6,2277.4,2.57662284]
[1770120054277,0.0217043,2278.5,2277.4,2.57662284]
[1770120054479,0.0217043,2278.5,2277.4,2.79639284]
[1770120056888,2.6236251,2278.8,2277.8,2.56584592]
[1770120057083,0.0119937,2278.8,2277.8,2.56584592]
[1770120057284,0.0119937,2278.7,2277.8,2.56584592]
[1770120058088,0.0119937,2278.7,2277.5,2.56584592]
[1770120058288,0.01558032,2278.6,2277.5,2.56584592]
[1770120058984,0.01558032,2278.5,2277.5,2.56584592]
[1770120059191,0.01558032,2278.4,2277.5,2.56584592]
[1770120061389,10.22458032,2278.4,2277.5,2.56584592]
[1770120061584,0.01005486,2278.3,2277.5,2.56584592]
[1770120061788,0.01005486,2278.3,2277.4,0.00478006]
[1770120061789,0.01005486,2278.2,2277.4,0.00478006]
[1770120063190,0.0122616,2278.1,2277.4,0.00478006]
[1770120063490,0.0122616,2278.0,2277.1,2.56571197]
[1770120063988,0.0122616,2278.0,2276.9,2.56571197]
[1770120064184,2.8555967,2278.1,2276.9,2.56571197]
[1770120064379,2.8433351,2278.1,2276.9,2.57003826]
[1770120064784,2.6236251,2278.0,2276.9,2.57003826]
[1770120064990,10.209,2277.9,2276.9,2.57003826]
[1770120066489,13.0523551,2277.9,2276.9,2.57003826]
[1770120066687,2.6236251,2277.8,2276.9,2.57003826]
[1770120067787,40.8,2277.7,2276.9,2.57003826]
[1770120070691,43.4236251,2277.7,2276.9,0.00432629]
[1770120071184,40.8,2277.7,2276.9,2.57616907]
[1770120071390,2.6236251,2278.0,2276.9,2.57616907]
[1770120071592,10.26,2278.0,2276.9,2.79597907]
[1770120075094,12.8836251,2278.0,2276.9,2.57616907]
[1770120075393,13.1033451,2278.0,2276.9,2.57616907]
[1770120075593,2.8433551,2277.9,2276.9,2.57616907]
[1770120077596,0.21974,2277.8,2276.9,2.57616907]
[1770120077894,2.8433651,2277.8,2276.9,2.57616907]
[1770120078094,2.6236251,2277.7,2276.9,2.57616907]
[1770120078395,43.42950593,2277.7,2276.9,2.57616907]
[1770120078595,43.4236251,2277.7,2276.9,2.57616907]
[1770120079298,10.275,2277.9,2276.9,2.57616907]
[1770120080191,12.8986251,2277.9,2276.9,2.57616907]
[1770120080497,10.275,2277.9,2276.9,2.57616907]
[1770120081198,12.8986251,2277.9,2276.9,2.57616907]
[1770120082297,2.6236251,2277.5,2276.9,0.00432629]
[1770120082498,10.285,2277.4,2276.9,2.57647761]
[1770120082897,12.9086251,2277.4,2276.6,2.57215132]
[1770120083491,0.21979,2277.3,2276.6,2.57215132]
[1770120083694,0.21979,2277.3,2276.3,2.57215132]
[1770120083895,0.21979,2277.3,2276.3,2.57752156]
[1770120084300,0.22524583,2277.3,2276.3,2.57752156]
[1770120084500,0.00545583,2277.2,2276.3,2.57752156]
[1770120084699,0.00545583,2277.1,2276.3,2.57752156]
[1770120086698,2.62908093,2277.1,2276.3,2.57752156]
[1770120086903,2.6236251,2277.1,2276.3,2.57752156]
[1770120088999,2.6236251,2277.2,2276.3,2.57752156]
[1770120089201,2.6236251,2277.1,2276.3,2.57752156]
[1770120102008,10.399,2277.1,2276.3,2.57752156]
[1770120102513,13.2424251,2277.1,2276.3,2.57752156]
[1770120103307,2.6236251,2276.9,2276.3,0.00537024]
[1770120103508,2.6236251,2276.9,2276.3,2.57752156]
[1770120103709,2.6236251,2277.0,2276.3,2.57752156]
[1770120104012,2.6236251,2277.1,2276.3,2.57752156]
[1770120104314,2.6236251,2277.2,2276.3,2.57752156]
[1770120104814,2.62795741,2277.5,2276.5,2.57215132]
[1770120105011,0.00433231,2277.5,2276.6,2.57215132]
[1770120105211,2.6236251,2277.6,2276.6,2.57215132]
[1770120105412,6.81350428,2278.4,2277.1,2.49301797]
[1770120105613,1.5884492,2278.4,2277.2,2.49301797]
[1770120105915,4.1654492,2278.6,2277.4,2.49301797]
[1770120106108,1.5884492,2278.5,2277.4,2.49301797]
[1770120106309,1.5402257,2278.2,2277.1,2.49301797]
[1770120107213,1.7599157,2278.3,2277.1,2.49301797]
[1770120108113,0.21972,2278.0,2276.8,2.6126936]
[1770120108316,1.60396569,2277.8,2276.9,2.49301797]
[1770120111516,6.83283816,2278.2,2276.9,2.49301797]
[1770120111715,1.83295329,2278.5,2277.2,2.54640917]
[1770120112013,0.22517021,2278.5,2277.2,2.54640917]
[1770120112615,0.22517021,2278.5,2277.4,2.55895846]
[1770120112812,0.00550021,2278.5,2277.4,2.55895846]
[1770120113216,1.61122495,2278.5,2277.4,2.55895846]
[1770120115217,0.00550021,2278.5,2277.4,2.55895846]
[1770120116118,1.63984027,2278.5,2277.4,2.55895846]
[1770120116925,1.85951027,2278.5,2277.4,2.55895846]
[1770120117321,1.61176872,2278.3,2277.4,2.55895846]
[1770120118514,1.61176872,2278.3,2277.0,2.55895846]
[1770120118726,1.61121993,2278.0,2277.0,2.55895846]
[1770120119024,1.61121993,2277.9,2276.8,2.55895846]
[1770120119325,1.61121993,2277.7,2276.8,2.55895846]
[1770120120824,1.61121993,2277.7,2276.4,0.048]
[1770120120825,1.5996649,2277.5,2276.4,2.55895846]
[1770120121025,1.8194349,2277.5,2276.4,2.55895846]
[1770120122124,1.8194449,2277.4,2276.4,2.55895846]
[1770120122325,0.21978,2277.4,2276.4,2.55895846]
[1770120123722,1.80881909,2277.4,2276.4,2.55895846]
[1770120127127,1.80590899,2276.9,2275.9,2.56330548]
[1770120127327,1.58277185,2276.8,2275.9,0.00434702]
[1770120127528,1.58277185,2276.6,2275.7,2.55895846]
[1770120128526,1.58277185,2276.6,2275.7,2.56310963]
[1770120129028,2.577,2276.6,2275.7,2.56310963]
[1770120130232,4.16886317,2276.6,2275.7,2.56310963]
[1770120130531,1.58346521,2276.5,2275.7,2.56310963]
[1770120131126,1.58346521,2276.5,2275.0,2.6126936]
[1770120131127,1.58346521,2276.4,2275.4,2.55895846]
[1770120131831,0.21988,2276.3,2275.4,2.55895846]
[1770120132034,1.58346521,2276.2,2275.4,2.55895846]
[1770120132235,1.58346521,2276.2,2275.4,2.56405776]
[1770120132533,1.8058309,2276.0,2275.0,2.55895846]
[1770120132833,1.8058409,2275.9,2275.0,2.55895846]
[1770120133230,2.79693,2275.8,2275.0,2.55895846]
[1770120133435,4.3828509,2275.8,2275.0,2.55895846]
[1770120133637,4.3828509,2275.8,2275.0,2.56249302]
[1770120136734,0.21993,2275.8,2275.0,2.56249302]
[1770120136940,3.52589,2276.2,2275.0,2.56249302]
[1770120137242,0.21991,2276.0,2275.0,2.56249302]
[1770120137443,1.8301883,2276.0,2275.0,2.56249302]
[1770120137642,1.6102783,2275.8,2275.0,2.56249302]
[1770120137842,0.21995,2275.6,2275.0,2.56249302]
[1770120142547,0.21992,2276.0,2275.0,2.56249302]
[1770120143049,0.21992,2275.9,2275.0,2.56249302]
[1770120143346,1.68363304,2275.8,2275.0,2.56249302]
[1770120144148,1.90356304,2275.8,2275.0,2.56249302]
[1770120144646,0.21993,2275.8,2275.0,2.56249302]
[1770120145042,2.578,2276.0,2275.0,2.56249302]
[1770120146344,2.79791,2276.0,2275.0,2.56249302]
[1770120146643,0.21993,2275.8,2275.0,2.56249302]
[1770120147146,1.94929741,2275.8,2275.0,2.56249302]
[1770120147448,0.21994,2275.7,2275.0,2.56249302]
[1770120147747,0.21995,2275.6,2274.8,2.50905921]
[1770120148842,0.21995,2275.6,2274.8,2.51270148]
[1770120149244,2.578,2276.0,2274.8,2.51270148]
[1770120150052,2.79791,2276.0,2274.8,2.51270148]
[1770120150351,0.21992,2275.9,2274.8,2.51270148]
[1770120150551,1.95099392,2275.9,2274.8,2.51270148]
[1770120150852,0.21992,2275.9,2274.8,2.51270148]
[1770120151054,0.21993,2275.8,2274.8,2.51270148]
[1770120151547,0.21994,2275.7,2274.8,2.51270148]
[1770120156058,40.6292734,2275.9,2274.8,2.51270148]
[1770120156059,1.74860641,2275.8,2274.8,2.51270148]
[1770120156260,0.21996,2275.5,2274.8,2.51270148]
[1770120158158,1.79470452,2275.5,2274.8,0.00364227]
[1770120158461,1.79817282,2275.3,2274.5,2.50905921]
[1770120158659,1.79817282,2275.2,2274.5,2.50905921]
[1770120159361,1.80372839,2275.2,2274.5,2.51470716]
[1770120159962,40.92191787,2275.2,2274.3,2.50905921]
[1770120161054,1.78979652,2275.1,2274.3,2.51388504]
[1770120161957,39.12374505,2275.2,2274.3,2.51388504]
[1770120162760,0.00555557,2275.2,2274.3,5.14623511]
[1770120162956,38.89819948,2275.4,2274.4,2.50905921]
[1770120163161,49.24219948,2275.5,2274.5,2.50905921]
[1770120164256,49.24760457,2275.5,2274.5,2.50905921]
[1770120165255,0.00540509,2275.5,2274.6,5.14140928]
[1770120165464,0.22536509,2275.5,2274.7,2.50905921]
[1770120165665,1.80470098,2275.4,2274.7,2.50905921]
[1770120165959,2.02467098,2275.4,2274.7,2.50905921]
[1770120166561,0.21997,2275.4,2274.7,2.50905921]
[1770120167360,1.8061636,2275.3,2274.5,5.18940928]
[1770120167560,2.0261736,2275.0,2274.3,2.51388504]
[1770120167762,0.22004,2274.7,2274.0,2.50905921]
[1770120167961,2.83236928,2274.6,2274.0,2.50905921]
[1770120168163,0.22007,2274.4,2273.7,2.73102377]
[1770120168963,0.22007,2274.4,2273.7,2.73422514]
[1770120169164,1.81256929,2274.1,2273.3,2.50905921]
[1770120169366,10.4,2274.0,2273.3,2.50905921]
[1770120170164,10.4,2274.0,2273.3,2.51356135]
[1770120171761,2.01580489,2273.8,2272.8,1.22759424]
[1770120171962,4.62725915,2273.8,2272.8,1.22759424]
[1770120172162,10.407,2273.7,2272.8,1.22759424]
[1770120172865,10.41251732,2273.7,2272.8,1.23291984]
[1770120173365,12.7577586,2273.7,2272.1,1.91738423]
[1770120173759,0.00551732,2273.7,2272.2,3.19904585]
[1770120174066,0.00551732,2273.7,2272.2,7.13213185]
[1770120174564,0.00551732,2273.7,2272.2,7.13732975]
[1770120175462,0.00551732,2273.7,2272.3,2.49369982]
[1770120175665,2.3507586,2273.7,2272.3,2.49369982]
[1770120176064,0.00551732,2273.7,2272.4,1.01381448]
[1770120176266,0.00551732,2273.7,2272.5,2.49369982]
[1770120176465,11.2077586,2273.7,2272.5,2.49369982]
[1770120177866,0.00551732,2273.7,2272.6,0.99445998]
[1770120178062,0.00551732,2273.7,2272.7,2.49369982]
[1770120178366,5.42424128,2274.2,2272.7,2.49369982]
[1770120178367,3.202,2274.1,2272.7,2.49369982]
[1770120178861,0.22006,2274.4,2272.9,2.49369982]
[1770120179061,2.58,2274.6,2273.1,2.49369982]
[1770120179366,2.58348321,2274.6,2273.1,2.49369982]
[1770120179566,2.58348321,2274.6,2273.3,2.49369982]
[1770120179866,0.00348321,2274.6,2273.3,2.49369982]
[1770120180264,0.00348321,2274.6,2273.5,2.49369982]
[1770120180566,2.34872449,2274.6,2273.5,2.49369982]
[1770120183068,2.34524128,2275.2,2274.0,2.71379982]
[1770120184471,2.35077948,2275.2,2274.0,2.71803535]
[1770120184672,0.0055382,2275.2,2274.4,2.49369982]
[1770120185672,0.0055382,2275.2,2274.4,2.71375982]
[1770120185871,51.46094,2275.7,2274.4,2.71375982]
[1770120186365,10.446,2275.8,2274.6,2.49369982]
[1770120186565,10.446,2275.8,2274.6,2.71373982]
[1770120186770,12.7954254,2275.8,2274.6,2.71373982]
[1770120186972,2.34524128,2275.7,2274.6,2.49369982]
[1770120187271,2.56521128,2275.4,2274.2,2.49369982]
[1770120187471,2.34524128,2275.2,2274.2,2.49369982]
[1770120187672,2.61145426,2275.6,2274.2,2.49369982]
[1770120187673,2.34524128,2275.0,2274.2,2.49369982]
[1770120187873,2.58,2275.1,2274.2,2.49369982]
[1770120188069,2.34524128,2275.6,2274.2,2.49369982]
[1770120188274,2.34524128,2275.6,2274.4,2.49369982]
[1770120188470,10.458,2275.7,2274.6,2.49369982]
[1770120189574,2.34524128,2275.6,2274.6,2.49369982]
[1770120192474,2.34524128,2275.4,2274.2,2.49369982]
[1770120194380,12.80324128,2275.7,2274.4,2.49369982]
[1770120195081,2.34524128,2275.6,2274.4,2.49369982]
[1770120196680,2.56520128,2275.6,2274.4,2.49369982]
[1770120196877,2.34524128,2275.4,2274.4,2.49369982]
[1770120197081,2.56524128,2275.2,2274.1,2.49369982]
[1770120197276,2.56525128,2275.0,2274.1,2.49369982]
[1770120197481,2.34524128,2274.9,2274.1,2.49369982]
[1770120197781,0.22005,2274.6,2274.0,0.00423553]
[1770120197985,2.56530128,2274.5,2273.5,5.57269982]
[1770120198180,2.56530128,2274.5,2273.6,2.49369982]
[1770120198983,2.56530128,2274.5,2273.6,2.49698051]
[1770120200578,2.35569376,2274.3,2273.6,0.00328069]
[1770120201179,0.22008,2274.2,2273.6,0.00328069]
[1770120201485,2.57905749,2274.2,2273.0,2.49518425]
[1770120201885,2.57905749,2274.2,2273.1,2.49518425]
[1770120202287,2.57905749,2274.2,2273.1,2.49850487]
[1770120202487,2.57905749,2274.2,2273.1,0.00332062]
[1770120203085,2.57905749,2274.2,2273.1,2.49850487]
[1770120205091,2.35569376,2274.0,2273.1,2.49850487]
[1770120205291,2.35569376,2273.9,2273.1,0.00332062]
[1770120205682,2.35569376,2273.9,2273.1,0.00183631]
[1770120205989,2.35569376,2273.6,2273.1,0.00183631]
[1770120207487,2.35569376,2273.6,2272.3,2.49518425]
[1770120207887,2.35569376,2273.6,2272.4,2.49518425]
[1770120208088,2.57583376,2273.6,2272.4,2.49518425]
[1770120208390,2.57583376,2273.6,2272.4,2.49923359]
[1770120209386,2.57585376,2273.4,2272.4,0.00404934]
[1770120209590,2.61145426,2273.7,2272.4,0.00404934]
[1770120209591,2.35569376,2273.2,2272.4,0.00404934]
[1770120209791,10.69017,2273.3,2272.4,2.49923359]
[1770120210491,2.35569376,2273.7,2272.4,2.49923359]
[1770120210694,2.35569376,2274.1,2272.6,2.49518425]
[1770120210892,11.59169376,2274.1,2272.6,2.49518425]
[1770120211288,11.59169376,2274.1,2272.7,0.94608117]
[1770120211490,11.59169376,2274.1,2272.8,2.49518425]
[1770120211992,9.236,2274.1,2272.8,2.49518425]
[1770120212192,2.35569376,2274.0,2273.0,2.49518425]
[1770120212393,2.35569376,2273.8,2272.7,2.49518425]
[1770120212594,2.35569376,2273.7,2272.7,2.49518425]
[1770120213192,0.22014,2273.6,2272.7,2.49518425]
[1770120213392,2.57583376,2273.6,2272.7,2.49518425]
[1770120213590,2.57583376,2273.6,2272.4,2.49923359]
[1770120214491,2.35569376,2273.4,2272.4,2.49923359]
[1770120214698,2.57585376,2273.4,2272.4,2.49923359]
[1770120215192,2.35569376,2273.3,2272.4,2.49923359]
[1770120215397,10.71516,2273.4,2272.4,2.49923359]
[1770120215597,13.07085376,2273.4,2272.4,2.49923359]
[1770120216200,2.35569376,2273.3,2272.4,2.49923359]
[1770120216400,5.65586376,2273.3,2272.4,0.00404934]
[1770120216600,2.35569376,2273.2,2272.4,0.00404934]
[1770120216995,2.57587376,2273.2,2272.4,0.00404934]
[1770120217301,2.57587376,2273.2,2271.8,2.49518425]
[1770120218094,2.57587376,2273.2,2271.8,2.49935643]
[1770120219710,2.35569376,2273.0,2271.8,2.49935643]
[1770120221002,2.35569376,2273.3,2272.0,2.49518425]
[1770120221707,4.93669376,2273.5,2272.2,2.49518425]
[1770120221904,2.35569376,2273.4,2272.2,2.49518425]
[1770120222206,2.35569376,2272.8,2271.9,2.51454642]
[1770120222505,2.57591376,2272.8,2271.9,2.49518425]
[1770120223099,2.57592376,2272.7,2271.9,2.49518425]
[1770120223303,2.57593376,2272.6,2271.8,0.00417218]
[1770120223504,2.57594376,2272.5,2271.8,0.00417218]
[1770120224105,0.22025,2272.5,2271.8,2.49935643]
[1770120224308,0.00381471,2272.6,2271.8,2.49935643]
[1770120225216,3.081,2273.3,2272.0,2.49518425]
[1770120225508,2.57588376,2273.2,2272.0,2.49518425]
[1770120226211,2.57972494,2273.2,2272.0,2.49518425]
[1770120227813,2.57588376,2273.1,2272.0,2.49518425]
[1770120228014,2.57589376,2273.0,2272.0,2.49518425]
[1770120229007,0.00384118,2273.2,2272.0,2.49518425]
[1770120229209,0.00384118,2273.2,2272.2,2.49518425]
[1770120229807,0.00384118,2273.2,2272.4,2.49518425]
[1770120232312,0.00384118,2273.2,2272.4,2.59518425]
[1770120233010,2.61145426,2273.5,2272.6,2.41952402]
[1770120233207,2.61145426,2273.7,2272.6,2.41952402]
[1770120233409,2.61145426,2273.8,2272.6,2.63975402]
[1770120233607,2.61145426,2273.8,2272.8,2.41952402]
[1770120234016,0.00441599,2273.8,2272.8,2.63973402]
[1770120234316,0.00441599,2273.8,2273.0,2.41952402]
[1770120234713,41.44404247,2274.2,2273.0,2.41952402]
[1770120234714,2.61145426,2274.2,2273.0,2.41952402]
[1770120235310,2.61145426,2274.3,2273.4,2.41952402]
[1770120235716,0.00368277,2274.3,2273.4,2.42368808]
[1770120237214,5.16098002,2274.3,2273.4,0.00416406]
[1770120237414,2.54584299,2274.1,2273.4,0.00416406]
[1770120237614,5.15729725,2274.1,2273.4,0.00416406]
[1770120237809,2.54584299,2274.0,2273.4,0.00416406]
[1770120239816,13.04284299,2274.0,2273.4,0.00416406]
[1770120240015,2.54584299,2273.9,2273.4,0.00416406]
[1770120241916,2.54584299,2273.9,2273.0,2.41952402]
[1770120242313,13.10845426,2274.0,2273.0,2.41952402]
[1770120242513,10.497,2274.0,2273.0,2.41952402]
[1770120242915,10.497,2274.0,2273.0,2.42495771]
[1770120243318,0.00368277,2274.3,2273.2,2.41952402]
[1770120243517,2.54952576,2274.3,2273.2,2.41952402]
[1770120244016,2.61513703,2274.3,2273.2,2.41952402]
[1770120244210,0.00368277,2274.3,2273.4,2.41952402]
[1770120246221,2.54584299,2274.6,2273.6,2.41952402]
[1770120247316,2.54912241,2274.6,2273.6,2.41952402]
[1770120248820,0.00327942,2274.6,2273.6,2.41952402]
[1770120249322,0.21999,2275.2,2274.0,2.41952402]
[1770120249519,2.54584299,2275.2,2274.0,2.41952402]
[1770120249814,2.54584299,2275.2,2273.7,0.80100857]
[1770120249815,2.54584299,2275.5,2274.2,2.41952402]
[1770120250014,2.54584299,2275.3,2274.1,0.69467812]
[1770120250219,5.16207098,2275.3,2273.9,2.41952402]
[1770120250420,2.54584299,2275.2,2273.9,2.41952402]
[1770120251214,2.54584299,2275.0,2273.9,2.41952402]
[1770120251813,2.76585299,2275.0,2273.9,2.41952402]
[1770120253619,2.54584299,2274.8,2273.7,2.41952402]
[1770120253821,2.54584299,2274.8,2273.3,2.41952402]
[1770120253822,2.54584299,2274.1,2273.3,2.41952402]
[1770120254015,2.54584299,2274.0,2273.1,2.41952402]
[1770120257020,2.76594299,2274.0,2273.0,0.00543369]
[1770120257226,5.36759029,2274.0,2273.0,0.00543369]
[1770120257426,2.54584299,2273.9,2273.0,0.00543369]
[1770120259528,2.54584299,2273.9,2273.0,2.42495771]
[1770120259829,5.15287182,2273.9,2273.0,2.42495771]
[1770120260731,2.4306748,2273.8,2273.0,2.42495771]
[1770120261429,2.6508048,2273.8,2273.0,0.00543369]
[1770120261627,2.4306748,2273.7,2273.0,0.00543369]
[1770120261828,2.65431499,2273.7,2272.7,2.56432747]
[1770120262029,2.4306748,2273.6,2272.5,2.56432747]
[1770120262830,2.6508448,2273.3,2272.2,2.62522752]
[1770120263025,2.4306748,2272.7,2271.7,2.56432747]
[1770120263932,2.4306748,2272.7,2271.7,2.56924352]
[1770120264125,45.83770363,2273.0,2271.7,2.56924352]
[1770120264432,38.89819948,2274.9,2273.6,0.22014]
[1770120264623,2.4306748,2275.4,2273.9,2.56432747]
[1770120265030,2.4306748,2275.4,2273.8,2.84136242]
[1770120265031,2.4306748,2275.4,2274.1,2.56432747]
[1770120265431,2.43462496,2275.4,2274.1,2.56835894]
[1770120266131,2.6506648,2275.2,2274.1,2.56835894]
[1770120266332,2.6506648,2275.2,2274.1,0.00403147]
[1770120267323,2.6506848,2275.0,2274.1,0.00403147]
[1770120267524,2.4306748,2274.8,2273.7,2.56432747]
[1770120267730,2.4306748,2274.6,2273.7,2.56432747]
[1770120268530,2.4306748,2274.6,2273.7,2.56935317]
[1770120269025,2.4306748,2274.9,2273.9,2.56432747]
[1770120269227,2.4306748,2275.2,2273.9,2.56432747]
[1770120269423,9.525,2275.1,2273.9,2.56432747]
[1770120269624,11.9556748,2275.1,2273.9,2.56432747]
[1770120270331,11.9556748,2275.1,2274.1,2.56432747]
[1770120272031,2.4306748,2275.0,2274.1,2.56432747]
[1770120273232,2.4306748,2275.0,2273.7,0.0050257]
[1770120273233,2.4306748,2275.0,2273.8,2.56432747]
[1770120276132,2.4306748,2275.0,2273.7,0.0050257]
[1770120276338,2.4306748,2274.8,2273.7,2.56935317]
[1770120277637,2.6507048,2274.8,2273.7,2.56935317]
[1770120283640,2.4306748,2274.6,2273.7,0.0050257]
[1770120285244,2.4306748,2274.3,2273.7,0.0050257]
[1770120285544,12.9826748,2274.3,2273.7,0.0050257]
[1770120287743,10.552,2274.3,2273.7,0.0050257]
[1770120288039,2.4306748,2274.7,2273.7,2.56935317]
[1770120288244,10.56,2274.6,2273.7,2.56935317]
[1770120288747,10.78003,2274.8,2273.7,2.56935317]
[1770120289442,2.4306748,2274.7,2273.7,2.56935317]
[1770120290745,10.78003,2274.8,2273.7,2.56935317]
[1770120292047,10.56,2274.8,2273.7,2.56935317]
[1770120292247,41.41394731,2275.1,2273.7,2.56935317]
[1770120292445,2.51574783,2275.1,2273.9,2.41422687]
[1770120292646,13.06974783,2275.1,2273.9,2.41422687]
[1770120293048,13.06974783,2275.1,2274.1,2.44214249]
[1770120293348,10.554,2275.1,2274.1,2.44214249]
[1770120293542,2.39292068,2275.3,2274.1,2.44214249]
[1770120293748,2.39292068,2275.3,2274.3,2.44214249]
[1770120294143,41.29112016,2275.3,2274.3,2.44214249]
[1770120294545,38.90214964,2275.4,2274.3,2.44214249]
[1770120294749,38.90214964,2275.4,2274.4,2.44214249]
[1770120294950,38.90214964,2275.4,2274.4,2.66220249]
[1770120295145,41.29507032,2275.4,2274.4,2.66220249]
[1770120295347,38.90214964,2275.4,2274.4,2.66220249]
[1770120295850,0.00395016,2275.4,2274.4,2.66220249]
[1770120296951,0.00395016,2275.4,2274.5,2.44214249]
[1770120300247,0.00395016,2275.4,2274.9,2.44214249]
[1770120300550,41.97719948,2276.6,2275.5,2.44214249]
[1770120300744,7.84468344,2277.0,2275.5,2.44214249]
[1770120300745,2.39292068,2277.0,2276.0,2.44214249]
[1770120300951,5.44484508,2277.3,2276.1,2.44214249]
[1770120300952,41.29112016,2277.3,2276.1,2.44214249]
[1770120301251,2.39292068,2277.2,2276.1,2.66204249]
[1770120301447,2.39292068,2277.2,2276.1,2.44763427]
[1770120301653,2.39292068,2277.2,2276.1,0.00549178]
[1770120301848,2.39292068,2276.9,2276.1,0.00549178]
[1770120302150,2.61275068,2276.9,2275.3,2.44214249]
[1770120302554,0.21987,2276.4,2275.0,2.44214249]
[1770120302851,2.39292068,2276.2,2275.0,2.44214249]
[1770120303053,2.39292068,2276.2,2275.0,2.44587866]
[1770120304051,2.39292068,2276.5,2275.2,2.44214249]
[1770120304346,2.39292068,2276.5,2275.4,2.44214249]
[1770120304553,2.39292068,2276.5,2275.4,2.66210249]
[1770120304753,5.896,2276.7,2275.4,2.44214249]
[1770120305047,8.28892068,2276.7,2275.4,2.44214249]
[1770120305252,8.28892068,2276.7,2275.6,2.44214249]
[1770120305848,2.39292068,2276.6,2275.6,2.44214249]
[1770120306046,2.39292068,2276.6,2275.7,0.36635246]
[1770120306250,2.39292068,2276.6,2275.6,2.44214249]
[1770120306452,2.39292068,2276.6,2275.2,2.44214249]
[1770120306853,2.39292068,2276.6,2275.2,2.90502016]
[1770120307452,2.39292068,2276.6,2275.4,2.44214249]
[1770120308054,2.39292068,2276.6,2275.4,2.66211249]
[1770120311056,2.39292068,2276.4,2275.1,2.44214249]
[1770120311255,2.39292068,2276.0,2275.0,0.00373617]
[1770120312261,7.90392068,2276.0,2275.0,0.00373617]
[1770120312555,2.39292068,2275.9,2275.0,0.00373617]
[1770120312761,2.39292068,2275.7,2275.0,0.00373617]
[1770120312963,2.39647407,2275.7,2275.0,0.00373617]
[1770120313460,0.00355339,2275.7,2275.0,2.44587866]
[1770120313764,2.39292068,2276.3,2275.2,2.44214249]
[1770120314660,2.39739999,2276.3,2275.2,2.44214249]
[1770120316165,2.61727999,2276.3,2275.0,0.00373617]
[1770120316967,2.61727999,2276.3,2275.0,2.44587866]
[1770120317767,2.39739999,2276.3,2275.2,2.44214249]
[1770120318669,2.39739999,2276.3,2275.0,0.00373617]
[1770120318670,2.39292068,2275.8,2275.0,0.00373617]
[1770120319070,2.39292068,2275.6,2275.0,0.00373617]
[1770120319269,2.39292068,2275.5,2274.4,0.22006]
[1770120319668,2.39292068,2275.5,2274.4,2.66220249]
[1770120319864,10.509,2275.6,2274.6,2.66218249]
[1770120320065,40.8,2276.1,2274.5,0.63670859]
[1770120320066,43.19292068,2276.1,2274.9,2.44214249]
[1770120320271,43.19292068,2276.1,2274.9,2.4460099]
[1770120320272,2.39292068,2276.0,2274.9,2.4460099]
[1770120320663,2.75958073,2275.7,2274.9,0.00386741]
[1770120320866,2.75958073,2275.7,2274.9,0.00031402]
[1770120321172,2.75958073,2275.7,2274.3,2.35544061]
[1770120321372,2.53963073,2275.5,2274.3,2.35544061]
[1770120321568,0.21995,2275.6,2274.0,2.57554061]
[1770120321569,2.53963073,2275.3,2274.0,2.57554061]
[1770120321867,2.53963073,2275.3,2274.1,0.67535636]
[1770120322072,2.53963073,2275.3,2274.1,3.03079697]
[1770120322372,2.53963073,2275.3,2274.2,2.35544061]
[1770120323166,2.75961073,2275.3,2274.2,2.35544061]
[1770120323570,10.517,2275.4,2274.0,0.22534072]
[1770120323571,2.53963073,2275.1,2274.0,0.00524072]
[1770120323970,2.53963073,2275.1,2274.0,2.36068133]
[1770120324670,3.078,2275.3,2274.3,2.35544061]
[1770120324871,13.05363073,2275.5,2274.3,2.35544061]
[1770120325668,2.53963073,2275.5,2274.3,2.35544061]
[1770120326276,2.53963073,2275.5,2274.3,2.57551061]
[1770120327275,2.53963073,2275.5,2274.3,2.35544061]
[1770120327575,2.75959073,2275.5,2274.1,2.35544061]
[1770120327771,2.53963073,2275.2,2274.1,2.35544061]
[1770120328174,2.75962073,2275.2,2274.1,2.35544061]
[1770120328375,2.53963073,2275.0,2274.0,0.00524072]
[1770120328571,2.53963073,2274.8,2274.0,0.00524072]
[1770120329477,2.53963073,2274.8,2274.0,2.36068133]
[1770120332078,2.53963073,2274.8,2274.0,0.00524072]
[1770120332678,2.75966073,2274.8,2274.0,0.00524072]
[1770120333680,2.75968073,2274.6,2274.0,0.00524072]
[1770120333880,2.76474839,2274.6,2274.0,0.00524072]
[1770120335782,2.76474839,2274.6,2273.6,2.35544061]
[1770120336781,2.76474839,2274.6,2273.6,2.35967328]
[1770120338484,2.75969073,2274.4,2273.6,0.00423267]
[1770120339984,2.53963073,2274.2,2273.6,0.00423267]
[1770120340186,2.53963073,2274.2,2273.3,0.048]
[1770120340382,2.53963073,2274.2,2273.1,0.048]
[1770120340788,2.53963073,2274.2,2273.1,2.40344061]
[1770120341086,5.966,2274.1,2273.1,2.40780123]
[1770120343487,5.966,2274.1,2273.3,2.35544061]
[1770120344086,2.75971073,2274.3,2273.3,2.35544061]